fUST/lending_fUST_20240613
["ID","MTS","AMOUNT","RATE_DAILY","PERIOD"]
[329307173,1718230250381,-1108.71,0.00017808,2]
[329307174,1718230250404,-2444.01,0.00017808,2]
[329307175,1718230250417,-500.0,0.00017808,2]
[329307176,1718230250429,-500.0,0.00017808,2]
[329307177,1718230250456,-505.42,0.00017808,2]
[329307178,1718230250468,-607.44,0.00017808,2]
[329307179,1718230250479,-2271.14,0.00017808,2]
[329307180,1718230250489,-6255.66,0.00017808,2]
[329307181,1718230250512,-2632.92,0.00017808,2]
[329307182,1718230250523,-1448.52,0.00017808,2]
[329307183,1718230250533,-1178.99128817,0.00017808,2]
[329307184,1718230250766,-823.44871183,0.00017808,2]
[329307185,1718230250776,-500.0,0.00017808,2]
[329307186,1718230250788,-614.41,0.00017808,2]
[329307187,1718230250798,-3340.25,0.00017808,2]
[329307188,1718230250810,-500.0,0.00017808,2]
[329307189,1718230250820,-661.63,0.00017808,2]
[329307190,1718230250831,-601.85,0.00017808,2]
[329307191,1718230250841,-500.0,0.00017808,2]
[329307192,1718230250851,-467.98630434,0.00017808,2]
[329307193,1718230250864,-391.58369566,0.00017808,2]
[329307194,1718230250875,-500.0,0.00017808,2]
[329307195,1718230250885,-552.48,0.00017808,2]
[329307196,1718230250896,-63.23871132,0.00017808,2]
[329307197,1718230251080,-436.76128868,0.00017808,2]
[329307198,1718230251091,-995.52395391,0.00017808,2]
[329307199,1718230251103,-120.72604609,0.00017808,2]
[329307200,1718230251114,-706.51,0.00017808,2]
[329307201,1718230251124,-500.0,0.00017808,2]
[329307202,1718230251136,-562.26,0.00017808,2]
[329307203,1718230251146,-847.18,0.00017808,2]
[329307204,1718230251158,-590.95,0.00017808,2]
[329307205,1718230251172,-876.82850055,0.00018,2]
[329307206,1718230251183,-2319.20672273,0.00018,2]
[329307207,1718230251196,-446.23578933,0.00018,2]
[329307208,1718230251206,-1355.61945113,0.00018,2]
[329307209,1718230251217,-23667.6423974,0.00018,2]
[329307210,1718230251231,-8227.61559687,0.00018,2]
[329307211,1718230251241,-476.69963654,0.00018,2]
[329307212,1718230251252,-5000.0,0.00018,7]
[329307213,1718230251262,-420.0,0.00018081,2]
[329307214,1718230251273,-500.0,0.00018082,2]
[329307215,1718230251284,-538.37,0.00018082,2]
[329307216,1718230251295,-551.0,0.00018082,2]
[329307217,1718230251306,-500.0,0.00018082,2]
[329307218,1718230251316,-500.0,0.00018082,2]
[329307219,1718230251326,-500.0,0.00018082,2]
[329307220,1718230251336,-500.0,0.00018082,2]
[329307221,1718230251346,-571.7,0.00018082,2]
[329307222,1718230251357,-516.66,0.00018082,2]
[329307223,1718230251367,-643.481128,0.00018082,2]
[329307224,1718230251378,-353.79562145,0.00018082,2]
[329307225,1718230251391,-684.53,0.00018082,2]
[329307226,1718230251402,-251.91,0.00018082,2]
[329307227,1718230251412,-622.42,0.00018082,2]
[329307228,1718230251423,-764.43,0.00018082,2]
[329307229,1718230251453,-265.42972215,0.00018082,2]
[329307230,1718230251467,-1108.71,0.00018082,2]
[329307231,1718230251477,-500.0,0.00018082,2]
[329307232,1718230251487,-2444.01,0.00018082,2]
[329307233,1718230251497,-500.0,0.00018082,2]
[329307234,1718230251507,-500.0,0.00018082,2]
[329307235,1718230251520,-505.42,0.00018082,2]
[329307236,1718230251530,-607.44,0.00018082,2]
[329307237,1718230251542,-832.61695655,0.00018082,2]
[329307242,1718230252515,-500.0,0.00016438,2]
[329307243,1718230252529,-246.20018376,0.00016438,2]
[329307245,1718230252722,-92.29816908,0.00016438,2]
[329307246,1718230252733,-150.65,0.00016712,2]
[329307247,1718230252744,-1438.52304345,0.00018082,2]
[329307248,1718230252755,-6255.66,0.00018082,2]
[329307249,1718230252765,-2632.92,0.00018082,2]
[329307250,1718230252776,-1448.52,0.00018082,2]
[329307251,1718230252786,-2002.44,0.00018082,2]
[329307252,1718230252797,-500.0,0.00018082,2]
[329307253,1718230252809,-614.41,0.00018082,2]
[329307254,1718230252820,-3340.25,0.00018082,2]
[329307255,1718230252830,-500.0,0.00018082,2]
[329307256,1718230252840,-661.63,0.00018082,2]
[329307257,1718230252850,-601.85,0.00018082,2]
[329307258,1718230252860,-500.0,0.00018082,2]
[329307259,1718230252870,-859.57,0.00018082,2]
[329307260,1718230252879,-500.0,0.00018082,2]
[329307261,1718230252890,-552.48,0.00018082,2]
[329307262,1718230252900,-500.0,0.00018082,2]
[329307263,1718230252911,-1116.25,0.00018082,2]
[329307264,1718230252921,-706.51,0.00018082,2]
[329307265,1718230252931,-500.0,0.00018082,2]
[329307266,1718230252941,-562.26,0.00018082,2]
[329307267,1718230252952,-847.18,0.00018082,2]
[329307268,1718230252962,-590.95,0.00018082,2]
[329307269,1718230252972,-230.00874475,0.00018188,2]
[329307270,1718230252987,-538.37,0.00018356,2]
[329307271,1718230252997,-500.0,0.00018356,2]
[329307272,1718230253007,-500.0,0.00018356,2]
[329307273,1718230253016,-500.0,0.00018356,2]
[329307274,1718230253027,-571.7,0.00018356,2]
[329307275,1718230253037,-516.66,0.00018356,2]
[329307276,1718230253048,-684.53,0.00018356,2]
[329307277,1718230253059,-622.42,0.00018356,2]
[329307278,1718230253070,-764.43,0.00018356,2]
[329307279,1718230253079,-500.0,0.00018356,2]
[329307280,1718230253090,-2444.01,0.00018356,2]
[329307281,1718230253101,-500.0,0.00018356,2]
[329307282,1718230253112,-500.0,0.00018356,2]
[329307283,1718230253123,-505.42,0.00018356,2]
[329307284,1718230253134,-607.44,0.00018356,2]
[329307285,1718230253144,-2271.14,0.00018356,2]
[329307286,1718230253155,-6255.66,0.00018356,2]
[329307287,1718230253165,-2632.92,0.00018356,2]
[329307288,1718230253175,-1448.52,0.00018356,2]
[329307289,1718230253184,-2002.44,0.00018356,2]
[329307290,1718230253195,-500.0,0.00018356,2]
[329307291,1718230253207,-614.41,0.00018356,2]
[329307292,1718230253217,-3340.25,0.00018356,2]
[329307294,1718230253228,-500.0,0.00018356,2]
[329307296,1718230253238,-661.63,0.00018356,2]
[329307298,1718230253248,-601.85,0.00018356,2]
[329307300,1718230253261,-500.0,0.00018356,2]
[329307303,1718230253272,-859.57,0.00018356,2]
[329307305,1718230253282,-500.0,0.00018356,2]
[329307307,1718230253293,-440.2972437,0.00018356,2]
[329307318,1718231304022,-250.0,0.00015136,2]
[329307319,1718231328960,-260.93810338,0.00015276,2]
[329307320,1718231329022,-260.93810338,0.00015276,2]
[329307321,1718231354081,-271.37562751,0.00015214,2]
[329307322,1718231354137,-28.62437249,0.00015214,2]
[329307323,1718231354175,-242.75125502,0.00015215,2]
[329307324,1718231378729,-282.23065261,0.00015215,2]
[329307325,1718231378789,-282.23065261,0.00015215,2]
[329307326,1718231403823,-293.51987872,0.00015214,2]
[329307327,1718231404054,-6.48012128,0.00015214,2]
[329307328,1718231404104,-287.03975744,0.00015215,2]
[329307337,1718231434197,-553.4887,0.00015215,2]
[329307338,1718231434213,-5155.8,0.00015215,2]
[329307357,1718231440589,-1148.725005,0.00015215,2]
[329307358,1718231440609,-1089.4560012,0.00015215,2]
[329307359,1718231440623,-1080.23999965,0.00015215,2]
[329307360,1718231440638,-7624.22121317,0.00015215,2]
[329307361,1718231440652,-1531.25008044,0.00015276,2]
[329307362,1718231440665,-671.66329761,0.00016436,2]
[329307363,1718231440679,-164.49607882,0.00016436,2]
[329307364,1718231440690,-2411.74414637,0.00016436,2]
[329307365,1718231440703,-1877.30128471,0.00016436,2]
[329307366,1718231440719,-446.05538164,0.00016436,2]
[329307367,1718231440733,-595.30014019,0.00016436,2]
[329307368,1718231440747,-2223.42597795,0.00016437,2]
[329307369,1718231440763,-268.5794634,0.00016438,2]
[329307370,1718231440782,-500.0,0.00016438,2]
[329307371,1718231440797,-500.0,0.00016438,2]
[329307372,1718231440810,-500.0,0.00016438,2]
[329307373,1718231440830,-500.0,0.00016438,2]
[329307374,1718231440846,-500.0,0.00016438,2]
[329307375,1718231440861,-258.09980401,0.00016438,2]
[329307376,1718231440875,-500.0,0.00016438,2]
[329307377,1718231440888,-500.0,0.00016438,2]
[329307378,1718231440932,-500.0,0.00016438,2]
[329307379,1718231440949,-500.0,0.00016438,2]
[329307380,1718231440963,-500.0,0.00016438,2]
[329307381,1718231440983,-500.0,0.00016438,2]
[329307382,1718231440998,-500.0,0.00016438,2]
[329307383,1718231441012,-500.0,0.00016438,2]
[329307384,1718231441024,-500.0,0.00016438,2]
[329307385,1718231441045,-500.0,0.00016438,2]
[329307386,1718231441060,-500.0,0.00016438,2]
[329307387,1718231441078,-500.0,0.00016438,2]
[329307388,1718231441094,-500.0,0.00016438,2]
[329307389,1718231441110,-500.0,0.00016438,2]
[329307390,1718231441125,-500.0,0.00016438,2]
[329307391,1718231441139,-500.0,0.00016438,2]
[329307392,1718231441156,-500.0,0.00016438,2]
[329307393,1718231441176,-500.0,0.00016438,2]
[329307394,1718231441199,-500.0,0.00016438,2]
[329307395,1718231441216,-500.0,0.00016438,2]
[329307396,1718231441241,-500.0,0.00016438,2]
[329307397,1718231441257,-500.0,0.00016438,2]
[329307398,1718231441273,-500.0,0.00016438,2]
[329307399,1718231441284,-500.0,0.00016438,2]
[329307400,1718231441303,-500.0,0.00016438,2]
[329307401,1718231441316,-500.0,0.00016438,2]
[329307402,1718231441328,-500.0,0.00016438,2]
[329307403,1718231441340,-500.0,0.00016438,2]
[329307404,1718231441356,-500.0,0.00016438,2]
[329307405,1718231441393,-500.0,0.00016438,2]
[329307406,1718231441408,-500.0,0.00016438,2]
[329307407,1718231441425,-500.0,0.00016438,2]
[329307408,1718231441443,-500.0,0.00016438,2]
[329307409,1718231441455,-500.0,0.00016438,2]
[329307410,1718231441469,-500.0,0.00016438,2]
[329307411,1718231441485,-153.88,0.00016438,2]
[329307412,1718231441507,-500.0,0.00016438,2]
[329307413,1718231441519,-500.0,0.00016438,2]
[329307414,1718231441530,-500.0,0.00016438,2]
[329307415,1718231441547,-500.0,0.00016438,2]
[329307416,1718231441559,-500.0,0.00016438,2]
[329307417,1718231441571,-500.0,0.00016438,2]
[329307418,1718231441582,-500.0,0.00016438,2]
[329307419,1718231441593,-500.0,0.00016438,2]
[329307420,1718231441605,-546.08,0.00016438,2]
[329307421,1718231441617,-500.0,0.00016438,2]
[329307422,1718231441628,-500.0,0.00016438,2]
[329307423,1718231441641,-500.0,0.00016438,2]
[329307424,1718231441662,-500.0,0.00016438,2]
[329307425,1718231441686,-207.53280308,0.00016438,2]
[329307426,1718231441720,-500.0,0.00016438,2]
[329307427,1718231441733,-500.0,0.00016438,2]
[329307428,1718231441762,-500.87909105,0.00016438,2]
[329307429,1718231441779,-686.84,0.00016438,2]
[329307430,1718231441799,-500.0,0.00016438,2]
[329307431,1718231441821,-500.0,0.00016438,2]
[329307432,1718231441836,-500.0,0.00016438,2]
[329307433,1718231441859,-500.0,0.00016438,2]
[329307434,1718231441870,-500.0,0.00016438,2]
[329307435,1718231441900,-500.0,0.00016438,2]
[329307436,1718231441934,-500.0,0.00016438,2]
[329307437,1718231441959,-500.0,0.00016438,2]
[329307438,1718231441973,-500.0,0.00016438,2]
[329307439,1718231441990,-500.0,0.00016438,2]
[329307440,1718231442003,-500.0,0.00016438,2]
[329307441,1718231442021,-500.0,0.00016438,2]
[329307442,1718231442038,-500.0,0.00016438,2]
[329307443,1718231442055,-500.0,0.00016438,2]
[329307444,1718231442076,-500.0,0.00016438,2]
[329307445,1718231442094,-500.0,0.00016438,2]
[329307446,1718231442106,-500.0,0.00016438,2]
[329307447,1718231442130,-500.0,0.00016438,2]
[329307448,1718231442142,-500.0,0.00016438,2]
[329307449,1718231442163,-500.0,0.00016438,2]
[329307450,1718231442181,-500.0,0.00016438,2]
[329307451,1718231442201,-500.0,0.00016438,2]
[329307452,1718231442212,-500.0,0.00016438,2]
[329307453,1718231442235,-580.84,0.00016438,2]
[329307454,1718231442258,-500.0,0.00016438,2]
[329307455,1718231442279,-500.0,0.00016438,2]
[329307456,1718231442297,-500.0,0.00016438,2]
[329307457,1718231442311,-500.0,0.00016438,2]
[329307458,1718231442329,-500.0,0.00016438,2]
[329307459,1718231442345,-500.0,0.00016438,2]
[329307460,1718231442362,-500.0,0.00016438,2]
[329307461,1718231442375,-500.0,0.00016438,2]
[329307462,1718231442396,-500.0,0.00016438,2]
[329307463,1718231442416,-1068.1,0.00016438,2]
[329307464,1718231442428,-500.0,0.00016438,2]
[329307465,1718231442441,-500.0,0.00016438,2]
[329307466,1718231442467,-500.0,0.00016438,2]
[329307467,1718231442481,-500.0,0.00016438,2]
[329307468,1718231442495,-500.0,0.00016438,2]
[329307469,1718231442513,-454.39323364,0.00016438,2]
[329307470,1718231442528,-500.0,0.00016438,2]
[329307471,1718231442557,-2243.44,0.00016438,2]
[329307472,1718231442578,-500.0,0.00016438,2]
[329307473,1718231442595,-500.0,0.00016438,2]
[329307474,1718231442613,-500.0,0.00016438,2]
[329307475,1718231442624,-500.0,0.00016438,2]
[329307476,1718231442638,-500.0,0.00016438,2]
[329307477,1718231442651,-424.7232851,0.00016438,2]
[329307478,1718231442664,-500.0,0.00016438,2]
[329307479,1718231442688,-500.0,0.00016438,2]
[329307480,1718231442699,-583.47,0.00016438,2]
[329307481,1718231442714,-500.0,0.00016438,2]
[329307482,1718231442732,-500.0,0.00016438,2]
[329307483,1718231442752,-500.0,0.00016438,2]
[329307484,1718231442763,-2149.57,0.00016438,2]
[329307485,1718231442774,-5944.33,0.00016438,2]
[329307486,1718231442788,-500.0,0.00016438,2]
[329307487,1718231442799,-2446.69,0.00016438,2]
[329307488,1718231442810,-500.0,0.00016438,2]
[329307489,1718231442829,-500.0,0.00016438,2]
[329307490,1718231442842,-500.0,0.00016438,2]
[329307491,1718231442854,-500.0,0.00016438,2]
[329307492,1718231442868,-500.0,0.00016438,2]
[329307493,1718231442882,-500.0,0.00016438,2]
[329307494,1718231442920,-500.0,0.00016438,2]
[329307495,1718231442933,-500.0,0.00016438,2]
[329307496,1718231442944,-500.0,0.00016438,2]
[329307497,1718231442960,-411.73342454,0.00016438,2]
[329307498,1718231442973,-500.0,0.00016438,2]
[329307499,1718231442985,-1423.83,0.00016438,2]
[329307500,1718231443000,-500.0,0.00016438,2]
[329307501,1718231443011,-500.0,0.00016438,2]
[329307502,1718231443023,-507.69,0.00016438,2]
[329307503,1718231443034,-1634.47,0.00016438,2]
[329307504,1718231443045,-604.9,0.00016438,2]
[329307505,1718231443055,-500.0,0.00016438,2]
[329307506,1718231443065,-500.0,0.00016438,2]
[329307507,1718231443076,-500.0,0.00016438,2]
[329307508,1718231443089,-500.0,0.00016438,2]
[329307509,1718231443100,-500.0,0.00016438,2]
[329307510,1718231443113,-695.57,0.00016438,2]
[329307511,1718231443128,-500.0,0.00016438,2]
[329307512,1718231443145,-589.08,0.00016438,2]
[329307513,1718231443160,-500.0,0.00016438,2]
[329307514,1718231443172,-500.0,0.00016438,2]
[329307515,1718231443187,-500.0,0.00016438,2]
[329307516,1718231443200,-3009.04,0.00016438,2]
[329307517,1718231443385,-500.0,0.00016438,2]
[329307518,1718231443396,-500.0,0.00016438,2]
[329307519,1718231443406,-500.0,0.00016438,2]
[329307520,1718231443417,-500.0,0.00016438,2]
[329307521,1718231443429,-701.4,0.00016438,2]
[329307522,1718231443440,-551.64,0.00016438,2]
[329307523,1718231443451,-773.38,0.00016438,2]
[329307524,1718231443463,-500.0,0.00016438,2]
[329307525,1718231443474,-500.0,0.00016438,2]
[329307526,1718231443487,-500.0,0.00016438,2]
[329307527,1718231443498,-500.0,0.00016438,2]
[329307528,1718231443510,-500.0,0.00016438,2]
[329307529,1718231443520,-1043.65,0.00016438,2]
[329307530,1718231443530,-509.69,0.00016438,2]
[329307531,1718231443541,-500.0,0.00016438,2]
[329307532,1718231443553,-508.17577848,0.00016438,2]
[329307533,1718231443566,-500.0,0.00016438,2]
[329307534,1718231443579,-573.86,0.00016438,2]
[329307535,1718231443591,-363.75541119,0.00016438,2]
[329307536,1718231443605,-500.0,0.00016438,2]
[329307537,1718231443621,-779.1,0.00016438,2]
[329307538,1718231443633,-500.0,0.00016438,2]
[329307539,1718231443645,-500.0,0.00016438,2]
[329307540,1718231443658,-500.0,0.00016438,2]
[329307541,1718231443668,-343.7965023,0.00016438,2]
[329307542,1718231443681,-615.93,0.00016438,2]
[329307543,1718231443692,-500.0,0.00016438,2]
[329307544,1718231443705,-500.0,0.00016438,2]
[329307545,1718231443715,-500.0,0.00016438,2]
[329307546,1718231443726,-500.0,0.00016438,2]
[329307547,1718231443736,-500.0,0.00016438,2]
[329307548,1718231443747,-500.0,0.00016438,2]
[329307549,1718231443758,-500.0,0.00016438,2]
[329307550,1718231443770,-500.0,0.00016438,2]
[329307551,1718231443781,-500.0,0.00016438,2]
[329307552,1718231443792,-681.72,0.00016438,2]
[329307553,1718231443803,-467.50618289,0.00016612,2]
[329307554,1718231443814,-500.0,0.00016711,2]
[329307555,1718231443825,-500.0,0.00016711,2]
[329307556,1718231443836,-500.0,0.00016711,2]
[329307557,1718231443849,-534.76,0.00016711,2]
[329307558,1718231443859,-40465.19999701,0.00016712,15]
[329307559,1718231443871,-500.0,0.00016712,2]
[329307560,1718231443883,-500.0,0.00016712,2]
[329307561,1718231443918,-500.0,0.00016712,2]
[329307562,1718231443933,-500.0,0.00016712,2]
[329307563,1718231443945,-500.0,0.00016712,2]
[329307564,1718231443956,-500.0,0.00016712,2]
[329307567,1718231443968,-500.0,0.00016712,2]
[329307569,1718231443979,-500.0,0.00016712,2]
[329307571,1718231443991,-475.87266634,0.00016712,2]
[329307573,1718231444004,-500.0,0.00016712,2]
[329307575,1718231444015,-500.0,0.00016712,2]
[329307576,1718231444026,-500.0,0.00016712,2]
[329307578,1718231444038,-500.0,0.00016712,2]
[329307580,1718231444050,-500.0,0.00016712,2]
[329307582,1718231444060,-500.0,0.00016712,2]
[329307584,1718231444074,-500.0,0.00016712,2]
[329307586,1718231444086,-500.0,0.00016712,2]
[329307588,1718231444098,-500.0,0.00016712,2]
[329307590,1718231444115,-204.40448505,0.00016712,2]
[329307593,1718231444144,-500.0,0.00016712,2]
[329307595,1718231444160,-500.0,0.00016712,2]
[329307598,1718231444182,-500.0,0.00016712,2]
[329307601,1718231444206,-500.0,0.00016712,2]
[329307603,1718231444223,-500.0,0.00016712,2]
[329307604,1718231444235,-500.0,0.00016712,2]
[329307605,1718231444246,-500.0,0.00016712,2]
[329307606,1718231444257,-500.0,0.00016712,2]
[329307607,1718231444271,-500.0,0.00016712,2]
[329307608,1718231444283,-500.0,0.00016712,2]
[329307609,1718231444293,-637.96272413,0.00016712,2]
[329307610,1718231444304,-500.0,0.00016712,2]
[329307611,1718231444315,-500.0,0.00016712,2]
[329307612,1718231444326,-500.0,0.00016712,2]
[329307613,1718231444336,-500.0,0.00016712,2]
[329307614,1718231444347,-500.0,0.00016712,2]
[329307615,1718231444358,-546.08,0.00016712,2]
[329307616,1718231444368,-500.0,0.00016712,2]
[329307617,1718231444391,-500.0,0.00016712,2]
[329307618,1718231444403,-500.0,0.00016712,2]
[329307619,1718231444414,-686.84,0.00016712,2]
[329307620,1718231444427,-500.0,0.00016712,2]
[329307621,1718231444440,-595.16700674,0.00016712,2]
[329307622,1718231444451,-500.0,0.00016712,2]
[329307623,1718231444463,-500.0,0.00016712,2]
[329307624,1718231444475,-500.0,0.00016712,2]
[329307626,1718231444488,-500.0,0.00016712,2]
[329307628,1718231444500,-500.0,0.00016712,2]
[329307631,1718231444516,-500.0,0.00016712,2]
[329307635,1718231444528,-500.0,0.00016712,2]
[329307638,1718231444543,-500.0,0.00016712,2]
[329307640,1718231444556,-500.0,0.00016712,2]
[329307644,1718231444568,-500.0,0.00016712,2]
[329307646,1718231444579,-500.0,0.00016712,2]
[329307647,1718231444589,-500.0,0.00016712,2]
[329307648,1718231444600,-500.0,0.00016712,2]
[329307649,1718231444613,-500.0,0.00016712,2]
[329307650,1718231444624,-500.0,0.00016712,2]
[329307651,1718231444636,-500.0,0.00016712,2]
[329307652,1718231444646,-500.0,0.00016712,2]
[329307653,1718231444660,-500.0,0.00016712,2]
[329307654,1718231444670,-580.84,0.00016712,2]
[329307655,1718231444680,-500.0,0.00016712,2]
[329307656,1718231444690,-500.0,0.00016712,2]
[329307657,1718231444702,-500.0,0.00016712,2]
[329307658,1718231444713,-500.0,0.00016712,2]
[329307659,1718231444729,-500.0,0.00016712,2]
[329307660,1718231444739,-1068.1,0.00016712,2]
[329307661,1718231444750,-369.19017065,0.00016712,2]
[329307662,1718231444760,-284.87089557,0.00016712,2]
[329307663,1718231444770,-500.0,0.00016712,2]
[329307664,1718231444782,-500.0,0.00016712,2]
[329307665,1718231444793,-500.0,0.00016712,2]
[329307666,1718231444806,-2243.44,0.00016712,2]
[329307667,1718231444816,-500.0,0.00016712,2]
[329307668,1718231444829,-500.0,0.00016712,2]
[329307669,1718231444840,-500.0,0.00016712,2]
[329307670,1718231444851,-500.0,0.00016712,2]
[329307671,1718231444861,-500.0,0.00016712,2]
[329307672,1718231444872,-583.47,0.00016712,2]
[329307673,1718231444883,-500.0,0.00016712,2]
[329307674,1718231444916,-500.0,0.00016712,2]
[329307675,1718231444926,-2149.57,0.00016712,2]
[329307676,1718231444937,-5944.33,0.00016712,2]
[329307677,1718231444951,-2446.69,0.00016712,2]
[329307678,1718231444965,-500.0,0.00016712,2]
[329307679,1718231444978,-500.0,0.00016712,2]
[329307680,1718231444990,-500.0,0.00016712,2]
[329307681,1718231445005,-621.84608313,0.00016712,2]
[329307682,1718231445019,-500.0,0.00016712,2]
[329307683,1718231445039,-500.0,0.00016712,2]
[329307684,1718231445060,-500.0,0.00016712,2]
[329307685,1718231445071,-500.0,0.00016712,2]
[329307686,1718231445083,-500.0,0.00016712,2]
[329307687,1718231445094,-500.0,0.00016712,2]
[329307688,1718231445105,-1423.83,0.00016712,2]
[329307689,1718231445115,-500.0,0.00016712,2]
[329307690,1718231445133,-500.0,0.00016712,2]
[329307691,1718231445143,-507.69,0.00016712,2]
[329307692,1718231445160,-1634.47,0.00016712,2]
[329307693,1718231445176,-604.9,0.00016712,2]
[329307694,1718231445187,-500.0,0.00016712,2]
[329307695,1718231445198,-400.27161015,0.00016712,2]
[329307696,1718231445209,-695.57,0.00016712,2]
[329307697,1718231445220,-500.0,0.00016712,2]
[329307698,1718231445233,-589.08,0.00016712,2]
[329307699,1718231445243,-500.0,0.00016712,2]
[329307700,1718231445255,-3009.04,0.00016712,2]
[329307701,1718231445267,-500.0,0.00016712,2]
[329307702,1718231445279,-500.0,0.00016712,2]
[329307703,1718231445295,-500.0,0.00016712,2]
[329307704,1718231445306,-637.07,0.00016712,2]
[329307705,1718231445317,-701.4,0.00016712,2]
[329307706,1718231445328,-551.64,0.00016712,2]
[329307707,1718231445340,-773.38,0.00016712,2]
[329307708,1718231445351,-500.0,0.00016712,2]
[329307709,1718231445362,-500.0,0.00016712,2]
[329307710,1718231445373,-500.0,0.00016712,2]
[329307711,1718231445390,-500.0,0.00016712,2]
[329307712,1718231445401,-1043.65,0.00016712,2]
[329307713,1718231445414,-509.69,0.00016712,2]
[329307714,1718231445426,-500.0,0.00016712,2]
[329307715,1718231445438,-500.0,0.00016712,2]
[329307716,1718231445451,-573.86,0.00016712,2]
[329307717,1718231445470,-500.0,0.00016712,2]
[329307718,1718231445483,-779.1,0.00016712,2]
[329307719,1718231445494,-500.0,0.00016712,2]
[329307720,1718231445505,-393.30660927,0.00016712,2]
[329307721,1718231445517,-500.0,0.00016712,2]
[329307722,1718231445526,-615.93,0.00016712,2]
[329307723,1718231445539,-500.0,0.00016712,2]
[329307724,1718231445552,-500.0,0.00016712,2]
[329307725,1718231445565,-500.0,0.00016712,2]
[329307726,1718231445582,-500.0,0.00016712,2]
[329307727,1718231445593,-500.0,0.00016712,2]
[329307728,1718231445603,-500.0,0.00016712,2]
[329307729,1718231445614,-276.23015115,0.00016712,2]
[329307730,1718231445624,-681.72,0.00016712,2]
[329307731,1718231445636,-420.0,0.00016736,2]
[329307732,1718231445647,-500.0,0.00016985,2]
[329307733,1718231445659,-2120.154357,0.00016985,2]
[329307734,1718231445670,-500.0,0.00016985,2]
[329307735,1718231445679,-500.0,0.00016985,2]
[329307736,1718231445691,-500.0,0.00016986,2]
[329307737,1718231445702,-500.0,0.00016986,2]
[329307738,1718231445712,-500.0,0.00016986,2]
[329307739,1718231445723,-500.0,0.00016986,2]
[329307740,1718231445733,-500.0,0.00016986,2]
[329307741,1718231445743,-500.0,0.00016986,2]
[329307742,1718231445752,-500.0,0.00016986,2]
[329307743,1718231445762,-500.0,0.00016986,2]
[329307744,1718231445776,-500.0,0.00016986,2]
[329307745,1718231445786,-500.0,0.00016986,2]
[329307746,1718231445795,-500.0,0.00016986,2]
[329307747,1718231445805,-500.0,0.00016986,2]
[329307748,1718231445815,-500.0,0.00016986,2]
[329307749,1718231445825,-500.0,0.00016986,2]
[329307750,1718231445834,-500.0,0.00016986,2]
[329307751,1718231445847,-500.0,0.00016986,2]
[329307752,1718231445857,-500.0,0.00016986,2]
[329307753,1718231445867,-500.0,0.00016986,2]
[329307754,1718231445878,-500.0,0.00016986,2]
[329307755,1718231445889,-500.0,0.00016986,2]
[329307756,1718231445915,-500.0,0.00016986,2]